[Event "BL 2024-25"]
[Site "Austria"]
[Date "2024.10.10"]
[Round "2.1"]
[White "Demchenko, Anton"]
[Black "Dragnev, Valentin"]
[Result "1-0"]
[ECO "C54"]
[WhiteElo "2602"]
[BlackElo "2562"]
[Annotator "RC"]
[PlyCount "73"]
[EventDate "2024.08.28"]
[EventType "team-tourn"]
[EventCountry "AUT"]
[SourceTitle "playchess.com"]
[Source "ChessBase"]
[SourceQuality "1"]
[WhiteTeam "Frauental"]
[BlackTeam "Ottakring"]
[TimeControl "40/5400+30:1800+30"]

1. e4 {[%emt 0:00:02]} e5 {[%emt 0:00:15]} 2. Nf3 {[%emt 0:00:05]} Nc6 {[%emt 0:00:09]} 3. Bc4 {[%emt 0:00:06]} Bc5 {[%emt 0:00:11]} 4. c3 {[%emt 0:00:22]} Nf6 {[%emt 0:00:12]} 5. d3 {[%emt 0:00:05]} a6 {[%emt 0:01:52]} 6. O-O {[%emt 0:01:23]} Ba7 {[%emt 0:00:57]} 7. Nbd2 {[%emt 0:00:56]} O-O {[%emt 0:01:45]} 8. Re1 {[%emt 0:01:10]} Re8 {[%emt 0:14:12]} 9. a4 {[%emt 0:01:55]} d6 {[%emt 0:02:00]} 10. Nf1 {[%emt 0:01:03]} Be6 {[%emt 0:01:42]} 11. Bg5 {[%emt 0:17:12]} h6 {[%emt 0:02:33]} 12. Bh4 {[%emt 0:01:46]} Bxc4 {[%emt 0:11:50]} 13. dxc4 {[%emt 0:00:01]} Re6 {[%emt 0:00:23]} 14. Qc2 {[%emt 0:08:08]} g5 {[%emt 0:07:30]} 15. Bg3 {[%emt 0:00:25]} Ne7 {[%emt 0:00:59]} 16. Ne3 {[%emt 0:06:32]} Bxe3 {[%emt 0:00:49]} 17. fxe3 {[%emt 0:01:03]} Qd7 {[%emt 0:01:06]} 18. a5 {[%emt 0:02:13]} Qc6 {[%emt 0:02:48]} 19. Nd2 {[%emt 0:00:02]} Rf8 {[%emt 0:00:34]} 20. b4 {[%emt 0:05:55]} Nh5 {[%emt 0:09:44]} 21. Rf1 {[%emt 0:02:22]} Ng7 {[%emt 0:01:49]} 22. Qd3 {[%emt 0:00:35]} Qe8 {[%emt 0:08:49]} 23. Rab1 {[%emt 0:01:57]} Kh8 {[%emt 0:05:20]} 24. c5 {[%emt 0:07:24]} dxc5 {[%emt 0:05:53]} 25. Nb3 {[%emt 0:00:35]} c4 {[%emt 0:06:40]} 26. Qxc4 {[%emt 0:00:06]} Rc6 {[%emt 0:00:11]} 27. Qe2 {[%emt 0:02:11]} Ng6 {[%emt 0:02:25]} 28. b5 {[%emt 0:01:29]} Rxc3 {[%emt 0:02:10]} 29. Be1 {[%emt 0:00:53]} Rxb3 {[%emt 0:00:58]} 30. Rxb3 {[%emt 0:00:06]} axb5 {[%emt 0:00:29]} 31. Qxb5 {[%emt 0:00:59]} Qxb5 {[%emt 0:00:44]} 32. Rxb5 {[%emt 0:00:01]} b6 {[%emt 0:00:13]} 33. axb6 {[%emt 0:02:04]} cxb6 {[%emt 0:00:05]} 34. Bb4 {[%emt 0:00:15]} Rc8 {[%emt 0:00:28]} 35. Rxf7 {[%emt 0:00:21]} Rc4 {[%emt 0:00:21]} 36. Rxb6 {[%emt 0:00:43]} Kg8 {[%emt 0:00:10]} 37. Rff6 {[%emt 0:01:36]} 1-0

[Event "BL 2024-25"]
[Site "Austria"]
[Date "2024.10.10"]
[Round "2.2"]
[White "Papp, Gabor"]
[Black "Krivoborodov, Egor"]
[Result "1/2-1/2"]
[ECO "B36"]
[WhiteElo "2508"]
[BlackElo "2555"]
[Annotator "RC"]
[PlyCount "141"]
[EventDate "2024.08.28"]
[EventType "team-tourn"]
[EventCountry "AUT"]
[SourceTitle "playchess.com"]
[Source "ChessBase"]
[SourceQuality "1"]
[WhiteTeam "Ottakring"]
[BlackTeam "Frauental"]
[TimeControl "40/5400+30:1800+30"]

1. e4 {[%emt 0:00:05]} c5 {[%emt 0:00:04]} 2. Nf3 {[%emt 0:00:07]} g6 {[%emt 0:00:04]} 3. d4 {[%emt 0:00:17]} cxd4 {[%emt 0:00:04]} 4. Nxd4 {[%emt 0:00:05]} Nc6 {[%emt 0:00:17]} 5. c4 {[%emt 0:00:28]} Nf6 {[%emt 0:00:26]} 6. Nc3 {[%emt 0:00:09]} Nxd4 {[%emt 0:00:10]} 7. Qxd4 {[%emt 0:00:08]} d6 {[%emt 0:00:03]} 8. Be2 {[%emt 0:00:45]} Bg7 {[%emt 0:00:10]} 9. Be3 {[%emt 0:00:06]} O-O {[%emt 0:00:05]} 10. Qd3 {[%emt 0:01:19]} Nd7 {[%emt 0:19:38]} 11. O-O {[%emt 0:08:54]} Nc5 {[%emt 0:08:01]} 12. Qc2 {[%emt 0:00:25]} Bxc3 {[%emt 0:07:53]} 13. Qxc3 {[%emt 0:01:18]} Nxe4 {[%emt 0:00:15]} 14. Qd4 {[%emt 1:23:24]} Nf6 {[%emt 0:01:42]} 15. Rad1 {[%emt 0:00:00]} b6 {[%emt 0:09:05]} 16. Qh4 {[%emt 0:00:00]} Bb7 {[%emt 0:02:16]} 17. Rd4 {[%emt 0:00:00]} Re8 {[%emt 0:10:44]} 18. Rfd1 {[%emt 0:00:00]} Nd7 {[%emt 0:02:17]} 19. Qh6 {[%emt 0:00:00]} Nf8 {[%emt 0:00:27]} 20. h4 {[%emt 0:00:00]} Ne6 {[%emt 0:03:19]} 21. Rg4 {[%emt 0:00:00]} Ng7 {[%emt 0:00:33]} 22. Bd3 {[%emt 0:00:00]} Qd7 {[%emt 0:01:46]} 23. Rg5 {[%emt 0:00:00]} e5 {[%emt 0:09:36]} 24. h5 {[%emt 0:00:00]} Re6 {[%emt 0:01:35]} 25. hxg6 {[%emt 0:00:00]} fxg6 {[%emt 0:00:27]} 26. Qh3 {[%emt 0:00:00]} Qf7 {[%emt 0:01:45]} 27. Bc2 {[%emt 0:00:00]} Rf6 {[%emt 0:02:25]} 28. b4 {[%emt 0:00:00]} Re8 {[%emt 0:05:13]} 29. Qh4 {[%emt 0:00:00]} Ne6 {[%emt 0:01:22]} 30. c5 {[%emt 0:00:00]} bxc5 {[%emt 0:09:41]} 31. bxc5 {[%emt 0:00:00]} Nxg5 {[%emt 0:01:05]} 32. Bxg5 {[%emt 0:00:00]} Rf4 {[%emt 0:01:42]} 33. Bxf4 {[%emt 0:00:00]} Qxf4 {[%emt 0:00:02]} 34. Qxf4 {[%emt 0:00:00]} exf4 {[%emt 0:00:01]} 35. Rxd6 {[%emt 0:00:00]} Be4 {[%emt 0:02:49]} 36. Bb3+ {[%emt 0:00:00]} Kg7 {[%emt 0:00:45]} 37. Rd7+ {[%emt 0:00:00]} Kf6 {[%emt 0:00:05]} 38. c6 {[%emt 0:04:09]} Bf5 {[%emt 0:00:53]} 39. Rxa7 {[%emt 0:00:37]} Re1+ {[%emt 0:00:13]} 40. Kh2 {[%emt 0:00:01]} Rc1 {[%emt 0:00:01]} 41. Rf7+ {[%emt 0:20:31]} Ke5 {[%emt 0:04:05]} 42. Rxh7 {[%emt 0:02:36]} Rxc6 {[%emt 0:00:17]} 43. Rb7 {[%emt 0:00:07]} g5 {[%emt 0:09:15]} 44. Rb5+ {[%emt 0:00:05]} Kf6 {[%emt 0:00:08]} 45. f3 {[%emt 0:01:25]} g4 {[%emt 0:03:03]} 46. fxg4 {[%emt 0:00:40]} Bxg4 {[%emt 0:00:01]} 47. Rb8 {[%emt 0:01:06]} Ke5 {[%emt 0:05:42]} 48. Re8+ {[%emt 0:05:06]} Kd4 {[%emt 0:00:27]} 49. Rg8 {[%emt 0:00:05]} Be2 {[%emt 0:01:30]} 50. Kg1 {[%emt 0:01:11]} Bd3 {[%emt 0:07:39]} 51. Rd8+ {[%emt 0:01:18]} Ke3 {[%emt 0:00:22]} 52. Re8+ {[%emt 0:00:05]} Kd4 {[%emt 0:00:01]} 53. Rd8+ {[%emt 0:01:27]} Ke3 {[%emt 0:00:01]} 54. Re8+ {[%emt 0:04:15]} Kd4 {[%emt 0:00:06]} 55. Kf2 {[%emt 0:00:02]} Be4 {[%emt 0:00:17]} 56. Rf8 {[%emt 0:01:36]} Ke5 {[%emt 0:01:19]} 57. Re8+ {[%emt 0:00:22]} Kd4 {[%emt 0:00:02]} 58. Bd1 {[%emt 0:00:52]} Rc3 {[%emt 0:00:33]} 59. Rd8+ {[%emt 0:00:12]} Ke5 {[%emt 0:00:01]} 60. Re8+ {[%emt 0:00:04]} Kd4 {[%emt 0:00:01]} 61. Rd8+ {[%emt 0:00:13]} Ke5 {[%emt 0:00:06]} 62. Rd2 {[%emt 0:00:07]} Bd5 {[%emt 0:02:41]} 63. Rb2 {[%emt 0:00:52]} Rd3 {[%emt 0:01:40]} 64. Bb3 {[%emt 0:01:10]} Be4 {[%emt 0:00:30]} 65. Bc4 {[%emt 0:00:12]} Rg3 {[%emt 0:00:28]} 66. Bf1 {[%emt 0:00:15]} Ra3 {[%emt 0:00:02]} 67. Rb5+ {[%emt 0:01:54]} Kd4 {[%emt 0:00:24]} 68. Rb4+ {[%emt 0:00:05]} Ke5 {[%emt 0:00:01]} 69. Rb5+ {[%emt 0:00:04]} Kd4 {[%emt 0:00:02]} 70. Rb4+ {[%emt 0:00:05]} Ke5 {[%emt 0:00:02]} 71. Rb5+ {[%emt 0:00:21]} 1/2-1/2

[Event "BL 2024-25"]
[Site "Austria"]
[Date "2024.10.10"]
[Round "2.3"]
[White "Tratar, Marko"]
[Black "Peyrer, Konstantin"]
[Result "0-1"]
[ECO "A13"]
[WhiteElo "2374"]
[BlackElo "2415"]
[Annotator "RC"]
[PlyCount "76"]
[EventDate "2024.08.28"]
[EventType "team-tourn"]
[EventCountry "AUT"]
[SourceTitle "playchess.com"]
[Source "ChessBase"]
[SourceQuality "1"]
[WhiteTeam "Frauental"]
[BlackTeam "Ottakring"]
[TimeControl "40/5400+30:1800+30"]

1. Nf3 {[%emt 0:00:07]} Nf6 {[%emt 0:00:07]} 2. c4 {[%emt 0:00:26]} e6 {[%emt 0:00:06]} 3. b3 {[%emt 0:01:39]} d5 {[%emt 0:00:22]} 4. Bb2 {[%emt 0:00:06]} c5 {[%emt 0:00:50]} 5. cxd5 {[%emt 0:01:38]} exd5 {[%emt 0:00:36]} 6. g3 {[%emt 0:00:22]} Nc6 {[%emt 0:01:53]} 7. Bg2 {[%emt 0:00:32]} Bd6 {[%emt 0:01:06]} 8. O-O {[%emt 0:04:04]} Bg4 {[%emt 0:04:22]} 9. d4 {[%emt 0:22:30]} O-O {[%emt 0:02:56]} 10. Ne5 {[%emt 0:44:43]} Bh5 {[%emt 0:07:10]} 11. Nxc6 {[%emt 0:00:54]} bxc6 {[%emt 0:00:06]} 12. Nd2 {[%emt 0:08:43]} cxd4 {[%emt 0:18:45]} 13. Bxd4 {[%emt 0:00:06]} Re8 {[%emt 0:00:11]} 14. Bf3 {[%emt 0:00:21]} Bxf3 {[%emt 0:00:29]} 15. Nxf3 {[%emt 0:00:06]} Ne4 {[%emt 0:00:13]} 16. Nd2 {[%emt 0:04:16]} Qd7 {[%emt 0:01:26]} 17. Kg2 {[%emt 0:00:19]} Ng5 {[%emt 0:00:18]} 18. f4 {[%emt 0:03:12]} Ne4 {[%emt 0:02:21]} 19. Rc1 {[%emt 0:00:59]} Rac8 {[%emt 0:05:18]} 20. Rf3 {[%emt 0:02:11]} c5 {[%emt 0:01:27]} 21. Bb2 {[%emt 0:00:51]} Qf5 {[%emt 0:03:10]} 22. Rc2 {[%emt 0:00:40]} Rcd8 {[%emt 0:04:16]} 23. Rd3 {[%emt 0:01:24]} Nxd2 {[%emt 0:07:16]} 24. Rcxd2 {[%emt 0:00:11]} Qe4+ {[%emt 0:00:13]} 25. Rf3 {[%emt 0:00:08]} Bc7 {[%emt 0:01:10]} 26. Rc2 {[%emt 0:00:22]} Bb6 {[%emt 0:01:02]} 27. Qd3 {[%emt 0:00:28]} Qe7 {[%emt 0:00:20]} 28. Bc1 {[%emt 0:01:13]} Qb7 {[%emt 0:00:49]} 29. Ba3 {[%emt 0:00:39]} Rc8 {[%emt 0:01:20]} 30. Qb5 {[%emt 0:01:41]} a6 {[%emt 0:00:31]} 31. Qd3 {[%emt 0:00:03]} Qc6 {[%emt 0:04:04]} 32. Bb2 {[%emt 0:00:48]} c4 {[%emt 0:00:55]} 33. Qd1 {[%emt 0:00:34]} Re4 {[%emt 0:00:30]} 34. Rd2 {[%emt 0:00:27]} Rce8 {[%emt 0:00:14]} 35. Rc2 {[%emt 0:00:41]} Qe6 {[%emt 0:00:46]} 36. e3 {[%emt 0:00:25]} Bxe3 {[%emt 0:01:11]} 37. f5 {[%emt 0:00:19]} Qc6 {[%emt 0:31:11]} 38. Re2 {[%emt 0:00:48]} Bc1 {[%emt 0:00:00]} 0-1

[Event "BL 2024-25"]
[Site "Austria"]
[Date "2024.10.10"]
[Round "2.4"]
[White "Froewis, Georg"]
[Black "Mohr, Georg"]
[Result "1-0"]
[ECO "A40"]
[WhiteElo "2429"]
[BlackElo "2381"]
[Annotator "RC"]
[PlyCount "125"]
[EventDate "2024.08.28"]
[EventType "team-tourn"]
[EventCountry "AUT"]
[SourceTitle "playchess.com"]
[Source "ChessBase"]
[SourceQuality "1"]
[WhiteTeam "Ottakring"]
[BlackTeam "Frauental"]
[TimeControl "40/5400+30:1800+30"]

1. Nf3 {[%emt 0:00:04]} c5 {[%emt 0:00:38]} 2. c4 {[%emt 0:00:04]} g6 {[%emt 0:01:18]} 3. e4 {[%emt 0:00:04]} Bg7 {[%emt 0:00:04]} 4. d4 {[%emt 0:00:03]} cxd4 {[%emt 0:00:06]} 5. Nxd4 {[%emt 0:00:05]} Qb6 {[%emt 0:05:50]} 6. Nb3 {[%emt 0:00:25]} Nc6 {[%emt 0:01:19]} 7. Be3 {[%emt 0:00:50]} Qd8 {[%emt 0:00:46]} 8. Qd2 {[%emt 0:02:00]} Nf6 {[%emt 0:08:09]} 9. f3 {[%emt 0:00:05]} d6 {[%emt 0:00:29]} 10. Nc3 {[%emt 0:00:21]} O-O {[%emt 0:02:38]} 11. Be2 {[%emt 0:03:16]} a5 {[%emt 0:02:27]} 12. Na4 {[%emt 0:03:09]} Be6 {[%emt 0:28:28]} 13. Nb6 {[%emt 0:03:23]} Ra7 {[%emt 0:01:30]} 14. Nd5 {[%emt 0:00:19]} Ra8 {[%emt 0:00:26]} 15. Bb6 {[%emt 0:00:27]} Qc8 {[%emt 0:43:52]} 16. Nc7 {[%emt 0:03:49]} Rb8 {[%emt 0:00:00]} 17. Nxa5 {[%emt 0:00:06]} Nd7 {[%emt 0:00:00]} 18. Nxc6 {[%emt 0:00:50]} bxc6 {[%emt 0:00:00]} 19. Nxe6 {[%emt 0:00:03]} fxe6 {[%emt 0:00:00]} 20. Bd4 {[%emt 0:02:52]} Bxd4 {[%emt 0:00:00]} 21. Qxd4 {[%emt 0:00:06]} e5 {[%emt 0:00:00]} 22. Qc3 {[%emt 0:01:01]} Qb7 {[%emt 0:00:00]} 23. Rb1 {[%emt 0:00:58]} Qa7 {[%emt 0:00:00]} 24. b4 {[%emt 0:01:34]} Nc5 {[%emt 0:00:00]} 25. Rd1 {[%emt 0:03:26]} Na4 {[%emt 0:00:00]} 26. Qd2 {[%emt 0:01:21]} c5 {[%emt 0:00:00]} 27. b5 {[%emt 0:00:14]} Nb6 {[%emt 0:00:00]} 28. O-O {[%emt 0:00:09]} Ra8 {[%emt 0:00:00]} 29. Ra1 {[%emt 0:01:02]} Qa3 {[%emt 0:00:00]} 30. Rfc1 {[%emt 0:02:31]} Ra7 {[%emt 0:00:00]} 31. Rc3 {[%emt 0:01:21]} Qb4 {[%emt 0:00:00]} 32. a3 {[%emt 0:00:35]} Qa5 {[%emt 0:00:00]} 33. Qe3 {[%emt 0:03:08]} Nd7 {[%emt 0:02:59]} 34. Bf1 {[%emt 0:01:16]} Qd8 {[%emt 0:04:46]} 35. g3 {[%emt 0:00:56]} Nb6 {[%emt 0:01:00]} 36. Bh3 {[%emt 0:02:09]} Ra4 {[%emt 0:00:31]} 37. Be6+ {[%emt 0:06:22]} Kg7 {[%emt 0:00:01]} 38. f4 {[%emt 0:00:07]} Rf6 {[%emt 0:00:25]} 39. f5 {[%emt 0:00:06]} Rxe6 {[%emt 0:01:24]} 40. fxe6 {[%emt 0:00:05]} Qc8 {[%emt 0:00:20]} 41. Rf1 {[%emt 0:31:53]} Qxe6 {[%emt 0:30:08]} 42. Qf2 {[%emt 0:00:13]} Nd7 {[%emt 0:00:00]} 43. b6 {[%emt 0:00:00]} Ra8 {[%emt 0:00:00]} 44. b7 {[%emt 0:00:00]} Rb8 {[%emt 0:00:00]} 45. Qb2 {[%emt 0:00:00]} Nf6 {[%emt 0:00:00]} 46. a4 {[%emt 0:00:00]} Qd7 {[%emt 0:00:00]} 47. Rb3 {[%emt 0:00:00]} Qxa4 {[%emt 0:00:00]} 48. Ra1 {[%emt 0:00:00]} Qc6 {[%emt 0:00:00]} 49. Qb1 {[%emt 0:00:00]} Nd7 {[%emt 0:00:00]} 50. Ra2 {[%emt 0:00:00]} h5 {[%emt 0:00:00]} 51. h3 {[%emt 0:00:00]} Kf7 {[%emt 0:00:00]} 52. Ra7 {[%emt 0:01:52]} Kg7 {[%emt 0:02:53]} 53. Kg2 {[%emt 0:09:21]} Kf7 {[%emt 0:01:22]} 54. Rba3 {[%emt 0:00:39]} Kg7 {[%emt 0:01:44]} 55. R3a6 {[%emt 0:00:44]} Qc7 {[%emt 0:00:01]} 56. Qb5 {[%emt 0:00:13]} Qd8 {[%emt 0:02:22]} 57. Ra8 {[%emt 0:01:58]} Qc7 {[%emt 0:00:25]} 58. Rxb8 {[%emt 0:00:26]} Nxb8 {[%emt 0:00:02]} 59. Ra8 {[%emt 0:00:28]} h4 {[%emt 0:00:22]} 60. gxh4 {[%emt 0:00:28]} e6 {[%emt 0:00:10]} 61. Rxb8 {[%emt 0:00:42]} Qxb8 {[%emt 0:00:31]} 62. Qd7+ {[%emt 0:00:05]} Kh6 {[%emt 0:00:10]} 63. Qc8 {[%emt 0:00:06]} 1-0

[Event "BL 2024-25"]
[Site "Austria"]
[Date "2024.10.10"]
[Round "2.5"]
[White "Schnider, Gert"]
[Black "Balint, Peter"]
[Result "1/2-1/2"]
[ECO "C76"]
[WhiteElo "2362"]
[BlackElo "2375"]
[Annotator "RC"]
[PlyCount "65"]
[EventDate "2024.08.28"]
[EventType "team-tourn"]
[EventCountry "AUT"]
[SourceTitle "playchess.com"]
[Source "ChessBase"]
[SourceQuality "1"]
[WhiteTeam "Frauental"]
[BlackTeam "Ottakring"]
[TimeControl "40/5400+30:1800+30"]

1. e4 {[%emt 0:00:02]} e5 {[%emt 0:00:14]} 2. Nf3 {[%emt 0:00:04]} Nc6 {[%emt 0:00:03]} 3. Bb5 {[%emt 0:00:05]} a6 {[%emt 0:00:03]} 4. Ba4 {[%emt 0:00:05]} d6 {[%emt 0:00:10]} 5. O-O {[%emt 0:00:55]} Bd7 {[%emt 0:00:15]} 6. c3 {[%emt 0:01:01]} g6 {[%emt 0:00:09]} 7. d4 {[%emt 0:00:40]} Bg7 {[%emt 0:00:06]} 8. Re1 {[%emt 0:02:30]} Nge7 {[%emt 0:00:18]} 9. h3 {[%emt 0:00:35]} O-O {[%emt 0:00:13]} 10. Be3 {[%emt 0:00:50]} b6 {[%emt 0:01:43]} 11. Nbd2 {[%emt 0:07:31]} Qe8 {[%emt 0:05:00]} 12. dxe5 {[%emt 0:01:08]} dxe5 {[%emt 0:05:45]} 13. Bc2 {[%emt 0:01:47]} h6 {[%emt 0:02:42]} 14. a4 {[%emt 0:06:17]} f5 {[%emt 0:05:51]} 15. exf5 {[%emt 0:03:39]} gxf5 {[%emt 0:01:00]} 16. Nf1 {[%emt 0:01:40]} Be6 {[%emt 0:11:19]} 17. Bb3 {[%emt 0:10:06]} Qf7 {[%emt 0:01:11]} 18. Bxe6 {[%emt 0:00:24]} Qxe6 {[%emt 0:00:06]} 19. Qe2 {[%emt 0:03:08]} Ng6 {[%emt 0:05:44]} 20. Rad1 {[%emt 0:02:10]} a5 {[%emt 0:07:44]} 21. Qb5 {[%emt 0:08:23]} Rad8 {[%emt 0:01:45]} 22. Bc1 {[%emt 0:03:23]} e4 {[%emt 0:03:26]} 23. Rxd8 {[%emt 0:09:44]} Rxd8 {[%emt 0:00:49]} 24. Ng3 {[%emt 0:03:25]} Nge5 {[%emt 0:09:19]} 25. Nxe5 {[%emt 0:03:21]} Nxe5 {[%emt 0:03:52]} 26. Nh5 {[%emt 0:01:05]} Bh8 {[%emt 0:10:43]} 27. Nf4 {[%emt 0:06:00]} Qc4 {[%emt 0:02:25]} 28. Qxc4+ {[%emt 0:05:59]} Nxc4 {[%emt 0:00:07]} 29. Kf1 {[%emt 0:01:19]} Be5 {[%emt 0:02:53]} 30. g4 {[%emt 0:02:06]} fxg4 {[%emt 0:03:18]} 31. hxg4 {[%emt 0:00:01]} Nd2+ {[%emt 0:02:24]} 32. Bxd2 {[%emt 0:00:17]} Rxd2 {[%emt 0:00:04]} 33. Rxe4 {[%emt 0:01:33]} 1/2-1/2

[Event "BL 2024-25"]
[Site "Austria"]
[Date "2024.10.10"]
[Round "2.6"]
[White "Steindl, Johannes"]
[Black "Skuhala, Jernej"]
[Result "1-0"]
[ECO "B95"]
[WhiteElo "2225"]
[BlackElo "2320"]
[Annotator "RC"]
[PlyCount "85"]
[EventDate "2024.08.28"]
[EventType "team-tourn"]
[EventCountry "AUT"]
[SourceTitle "playchess.com"]
[Source "ChessBase"]
[SourceQuality "1"]
[WhiteTeam "Ottakring"]
[BlackTeam "Frauental"]
[TimeControl "40/5400+30:1800+30"]

1. e4 {[%emt 0:00:03]} c5 {[%emt 0:00:07]} 2. Nf3 {[%emt 0:00:10]} d6 {[%emt 0:00:06]} 3. d4 {[%emt 0:00:15]} cxd4 {[%emt 0:00:02]} 4. Nxd4 {[%emt 0:00:06]} Nf6 {[%emt 0:00:03]} 5. Nc3 {[%emt 0:00:05]} a6 {[%emt 0:00:06]} 6. Bg5 {[%emt 0:01:42]} e6 {[%emt 0:00:02]} 7. Qf3 {[%emt 0:00:03]} Be7 {[%emt 0:03:05]} 8. O-O-O {[%emt 0:00:32]} Nbd7 {[%emt 0:04:37]} 9. Kb1 {[%emt 0:08:02]} Qc7 {[%emt 0:02:46]} 10. g4 {[%emt 0:07:31]} b5 {[%emt 0:06:45]} 11. a3 {[%emt 0:03:52]} Bb7 {[%emt 0:01:15]} 12. Bxf6 {[%emt 0:04:52]} Nxf6 {[%emt 0:05:28]} 13. g5 {[%emt 0:00:21]} Nd7 {[%emt 0:02:43]} 14. Rg1 {[%emt 0:00:20]} Nc5 {[%emt 0:06:47]} 15. h4 {[%emt 0:02:39]} f5 {[%emt 0:22:57]} 16. gxf6 {[%emt 0:24:09]} Bxf6 {[%emt 0:00:41]} 17. Bxb5+ {[%emt 0:00:03]} axb5 {[%emt 0:05:55]} 18. Ndxb5 {[%emt 0:00:05]} Qe7 {[%emt 0:00:10]} 19. Nxd6+ {[%emt 0:02:31]} Kf8 {[%emt 0:00:59]} 20. Qe3 {[%emt 0:05:22]} Na4 {[%emt 0:11:57]} 21. e5 {[%emt 0:07:03]} Nxc3+ {[%emt 0:01:08]} 22. Qxc3 {[%emt 0:00:05]} Bxh4 {[%emt 0:02:42]} 23. Rd4 {[%emt 0:00:09]} Bd5 {[%emt 0:02:10]} 24. Rf4+ {[%emt 0:01:56]} Kg8 {[%emt 0:00:39]} 25. Rxh4 {[%emt 0:00:22]} h5 {[%emt 0:01:34]} 26. Qh3 {[%emt 0:02:22]} Rf8 {[%emt 0:02:55]} 27. f4 {[%emt 0:00:38]} Qa7 {[%emt 0:00:20]} 28. Rd1 {[%emt 0:03:10]} Rh6 {[%emt 0:03:32]} 29. c4 {[%emt 0:05:37]} Bc6 {[%emt 0:00:32]} 30. Rxh5 {[%emt 0:00:54]} Rxh5 {[%emt 0:01:43]} 31. Qxh5 {[%emt 0:00:06]} Rb8 {[%emt 0:00:13]} 32. Rd2 {[%emt 0:03:17]} Qg1+ {[%emt 0:00:54]} 33. Ka2 {[%emt 0:00:30]} Ba4 {[%emt 0:00:17]} 34. b4 {[%emt 0:02:54]} Ra8 {[%emt 0:00:57]} 35. Qf7+ {[%emt 0:02:05]} Kh8 {[%emt 0:00:02]} 36. Qxe6 {[%emt 0:01:53]} Qg3 {[%emt 0:01:31]} 37. Nf7+ {[%emt 0:00:23]} Kh7 {[%emt 0:00:52]} 38. Ng5+ {[%emt 0:00:05]} Kh8 {[%emt 0:00:03]} 39. Qh3+ {[%emt 0:00:06]} Qxh3 {[%emt 0:00:06]} 40. Nxh3 {[%emt 0:00:04]} Rc8 {[%emt 0:00:08]} 41. Ng5 {[%emt 0:30:11]} g6 {[%emt 0:30:10]} 42. Rd4 {[%emt 0:00:22]} Kg7 {[%emt 0:00:14]} 43. Kb2 {[%emt 0:00:35]} 1-0

[Event "BL 2024-25"]
[Site "Austria"]
[Date "2024.10.10"]
[Round "2.7"]
[White "Abasov, Nijat"]
[Black "Sarana, Alexey"]
[Result "1/2-1/2"]
[ECO "B53"]
[WhiteElo "2619"]
[BlackElo "2717"]
[Annotator "TA"]
[PlyCount "53"]
[EventDate "2024.08.28"]
[EventType "team-tourn"]
[EventCountry "AUT"]
[SourceTitle "playchess.com"]
[Source "ChessBase"]
[SourceQuality "1"]
[WhiteTeam "Feffernitz"]
[BlackTeam "Linz"]
[TimeControl "40/5400+30:1800+30"]

{[%evp 20,53,0,0,0,0,0,0,22,0,22,20,9,27,36,31,59,63,51,51,57,55,61,60,58,0,0,0,0,0,0,0,0,0,0,0]} 1. e4 {[%emt 0:00:02]} c5 {[%emt 0:00:06]} 2. Nf3 {[%emt 0:00:08]} d6 {[%emt 0:00:04]} 3. Nc3 {[%emt 0:00:09]} Nf6 {[%emt 0:00:08]} 4. d4 {[%emt 0:00:07]} cxd4 {[%emt 0:00:05]} 5. Qxd4 {[%emt 0:00:06]} Nc6 {[%emt 0:00:56]} 6. Bb5 {[%emt 0:00:09]} Bd7 {[%emt 0:01:39]} 7. Bxc6 {[%emt 0:00:22]} Bxc6 {[%emt 0:00:04]} 8. Bg5 {[%emt 0:00:07]} e6 {[%emt 0:00:11]} 9. O-O-O {[%emt 0:00:08]} Be7 {[%emt 0:00:06]} 10. Rhe1 {[%emt 0:00:10]} O-O {[%emt 0:02:24]} 11. e5 {[%emt 0:00:21]} dxe5 {[%emt 0:00:26]} 12. Nxe5 {[%emt 0:00:08]} Qxd4 {[%emt 0:06:01]} 13. Rxd4 {[%emt 0:00:24]} Bxg2 {[%emt 0:00:48]} 14. Rg1 {[%emt 0:00:16]} (14. Nd7 $5 Bc6 15. Nxf8 Kxf8 16. b4 $17) 14... Bc6 {[%emt 0:42:42]} (14... h6 $5 15. Bd2 Bh3 $16 (15... Bc5 $2 16. Rd3 $18)) 15. Nxc6 {[%emt 0:04:34]} (15. Bh6 {feels hotter.} Nh5 16. Rdg4 Bf6 17. Nxc6 Kh8 18. Be3) 15... bxc6 {[%emt 0:00:02]} 16. Ne4 {[%emt 0:00:13]} Kh8 {[%emt 0:09:11]} 17. Nxf6 {[%emt 0:01:26]} gxf6 {[%emt 0:03:55]} 18. Bh6 {[%emt 0:04:03]} Rg8 {[%emt 0:01:04] Wards off Bg7+} 19. Rxg8+ {[%emt 0:00:23]} Rxg8 $14 {[%emt 0:01:14][%mdl 4096] Endgame. KRB-KRB} 20. Rd7 {[%emt 0:00:10][%csl LRa7,LRe7]} Bc5 {[%emt 0:00:51]} 21. Rxf7 {[%emt 0:00:44] White is more active.} f5 {[%emt 0:06:56][%cal Og8g6]} 22. Be3 {[%emt 0:40:27]} (22. Kd2 $1 $14) 22... Bxe3+ $11 {[%emt 0:00:18] The position is equal.} 23. fxe3 {[%emt 0:00:05]} Rg7 $1 {[%emt 0:00:02]} 24. Rf8+ {[%emt 0:00:21]} Rg8 {[%emt 0:00:02]} 25. Rf7 {[%emt 0:13:21]} Rg7 $1 {[%emt 0:00:13]} 26. Rf8+ {[%emt 0:00:12]} Rg8 {[%emt 0:00:04]} 27. Rf7 {[%emt 0:00:09] Weighted Error Value: White=0.07 (flawless) /Black=0.05 (flawless) .  Mistake:       	White=1     	---        Inaccurate:     	---       	Black=1      OK:         	White=7     	Black=6      Best:        	White=1     	---        Strong:       	---       	Black=2} 1/2-1/2